[Event "Late-Titled-Tuesday-Blitz-February-13-2024"]
[Site "Chess.com"]
[Date "2024.02.13"]
[Round "3"]
[White "DenLaz"]
[Black "Kirill_Klukin"]
[Result "1/2-1/2"]
[WhiteElo "3072"]
[BlackElo "2825"]
[TimeControl "180+1"]
[EndTime "14:30:58 PST"]
[Termination "Game drawn - insufficient material"]

1. d4 {[%clk 0:03:00.5]} 1... d5 {[%clk 0:03:00.4]} 2. c4 {[%clk 0:02:57.6]}
2... e6 {[%clk 0:03:00.7]} 3. Nf3 {[%clk 0:02:57.8]} 3... a6 {[%clk 0:03:00.3]}
4. cxd5 {[%clk 0:02:53.4]} 4... exd5 {[%clk 0:03:01.2]} 5. Nc3 {[%clk
0:02:53.9]} 5... Nf6 {[%clk 0:03:00.7]} 6. Bg5 {[%clk 0:02:54.4]} 6... c6 {[%clk
0:03:01.2]} 7. e3 {[%clk 0:02:54]} 7... Be6 {[%clk 0:03:01.3]} 8. Bd3 {[%clk
0:02:54.4]} 8... Nbd7 {[%clk 0:03:01.6]} 9. O-O {[%clk 0:02:55.1]} 9... h6
{[%clk 0:03:01.4]} 10. Bf4 {[%clk 0:02:55]} 10... g5 {[%clk 0:02:57.2]} 11. Bg3
{[%clk 0:02:54.1]} 11... Nh5 {[%clk 0:02:57.3]} 12. Be5 {[%clk 0:02:54.2]} 12...
Ng7 {[%clk 0:02:55.5]} 13. Bg3 {[%clk 0:02:51.6]} 13... Nh5 {[%clk 0:02:55.5]}
14. e4 {[%clk 0:02:51.7]} 14... Nxg3 {[%clk 0:02:51.2]} 15. hxg3 {[%clk
0:02:52.6]} 15... dxe4 {[%clk 0:02:51.3]} 16. Bxe4 {[%clk 0:02:51.8]} 16... Nf6
{[%clk 0:02:50.6]} 17. Re1 {[%clk 0:02:48.6]} 17... Be7 {[%clk 0:02:48.9]} 18.
Bc2 {[%clk 0:02:46.2]} 18... Qc7 {[%clk 0:02:42.4]} 19. Bb3 {[%clk 0:02:43.7]}
19... Bxb3 {[%clk 0:02:24.6]} 20. Qxb3 {[%clk 0:02:44.6]} 20... O-O {[%clk
0:02:24.6]} 21. Ne5 {[%clk 0:02:41.1]} 21... Bd6 {[%clk 0:02:22]} 22. Nc4 {[%clk
0:02:23.6]} 22... Rad8 {[%clk 0:02:18.3]} 23. Ne3 {[%clk 0:02:22.4]} 23... Qd7
{[%clk 0:02:08.4]} 24. Qc2 {[%clk 0:02:21.4]} 24... Rfe8 {[%clk 0:02:08.5]} 25.
Nf5 {[%clk 0:02:19.6]} 25... Bf8 {[%clk 0:02:09.2]} 26. Rad1 {[%clk 0:02:13.9]}
26... Nd5 {[%clk 0:02:07.2]} 27. Nxd5 {[%clk 0:02:07.2]} 27... Qxd5 {[%clk
0:02:08.1]} 28. a3 {[%clk 0:02:06.8]} 28... Re6 {[%clk 0:02:06.5]} 29. Rxe6
{[%clk 0:02:00.1]} 29... Qxe6 {[%clk 0:02:02.6]} 30. g4 {[%clk 0:01:56.6]} 30...
Re8 {[%clk 0:01:47]} 31. Kf1 {[%clk 0:01:05.4]} 31... Qd5 {[%clk 0:01:40.7]} 32.
Ne3 {[%clk 0:01:03.3]} 32... Qb5+ {[%clk 0:01:31.3]} 33. Qe2 {[%clk 0:00:58]}
33... Qxe2+ {[%clk 0:01:16.6]} 34. Kxe2 {[%clk 0:00:58.9]} 34... Bg7 {[%clk
0:01:17.3]} 35. Kd3 {[%clk 0:00:55]} 35... Rd8 {[%clk 0:01:12.4]} 36. Ke4 {[%clk
0:00:41.8]} 36... Re8+ {[%clk 0:01:07.7]} 37. Kf3 {[%clk 0:00:42]} 37... Rd8
{[%clk 0:01:08]} 38. Nf5 {[%clk 0:00:41.5]} 38... c5 {[%clk 0:01:04.8]} 39. d5
{[%clk 0:00:36.6]} 39... Bxb2 {[%clk 0:01:02.4]} 40. Rb1 {[%clk 0:00:36.5]}
40... Bxa3 {[%clk 0:00:57.6]} 41. Rxb7 {[%clk 0:00:35.5]} 41... c4 {[%clk
0:00:40.9]} 42. Nxh6+ {[%clk 0:00:32.1]} 42... Kg7 {[%clk 0:00:41.2]} 43. Nf5+
{[%clk 0:00:32.2]} 43... Kf6 {[%clk 0:00:33.9]} 44. Ke4 {[%clk 0:00:30.6]} 44...
Bc5 {[%clk 0:00:32.1]} 45. Rc7 {[%clk 0:00:27.7]} 45... Re8+ {[%clk 0:00:27.3]}
46. Kf3 {[%clk 0:00:28.1]} 46... Bb4 {[%clk 0:00:27.7]} 47. Rc6+ {[%clk
0:00:15]} 47... Ke5 {[%clk 0:00:27]} 48. Rxc4 {[%clk 0:00:15.7]} 48... Rb8
{[%clk 0:00:22]} 49. d6 {[%clk 0:00:16.1]} 49... a5 {[%clk 0:00:12.6]} 50. Re4+
{[%clk 0:00:11.4]} 50... Kf6 {[%clk 0:00:12.6]} 51. d7 {[%clk 0:00:07.8]} 51...
Rd8 {[%clk 0:00:13]} 52. Rd4 {[%clk 0:00:08.5]} 52... Ke6 {[%clk 0:00:13.2]} 53.
Rc4 {[%clk 0:00:06.2]} 53... Rxd7 {[%clk 0:00:12.6]} 54. Rc6+ {[%clk 0:00:06.7]}
54... Kd5 {[%clk 0:00:12.9]} 55. Ra6 {[%clk 0:00:07.6]} 55... Kc4 {[%clk
0:00:12.9]} 56. Ke4 {[%clk 0:00:05]} 56... Kb5 {[%clk 0:00:10.5]} 57. Ra8 {[%clk
0:00:05.4]} 57... Bc5 {[%clk 0:00:10.9]} 58. f4 {[%clk 0:00:04.8]} 58... gxf4
{[%clk 0:00:10.7]} 59. Kxf4 {[%clk 0:00:05.7]} 59... a4 {[%clk 0:00:11.3]} 60.
g5 {[%clk 0:00:05.7]} 60... a3 {[%clk 0:00:11.9]} 61. Ke5 {[%clk 0:00:06.4]}
61... Ra7 {[%clk 0:00:12]} 62. Rb8+ {[%clk 0:00:04.9]} 62... Kc4 {[%clk
0:00:12.5]} 63. Rb1 {[%clk 0:00:05.3]} 63... a2 {[%clk 0:00:13]} 64. Ra1 {[%clk
0:00:05.8]} 64... Kb3 {[%clk 0:00:13.5]} 65. Kf6 {[%clk 0:00:05.6]} 65... Kb2
{[%clk 0:00:13.5]} 66. Rxa2+ {[%clk 0:00:04.7]} 66... Kxa2 {[%clk 0:00:14.4]}
67. g6 {[%clk 0:00:05.4]} 67... fxg6 {[%clk 0:00:14.6]} 68. Kxg6 {[%clk
0:00:06.3]} 68... Ra6+ {[%clk 0:00:15]} 69. Kh5 {[%clk 0:00:06]} 69... Kb3
{[%clk 0:00:15.5]} 70. g4 {[%clk 0:00:06.6]} 70... Kc4 {[%clk 0:00:16]} 71. g5
{[%clk 0:00:07.3]} 71... Kd5 {[%clk 0:00:16.6]} 72. g6 {[%clk 0:00:07.9]} 72...
Bd4 {[%clk 0:00:11.2]} 73. g7 {[%clk 0:00:06.8]} 73... Bxg7 {[%clk 0:00:10.1]}
74. Nxg7 {[%clk 0:00:07.7]} 74... Ke5 {[%clk 0:00:09.4]} 75. Kg5 {[%clk
0:00:08.2]} 75... Ra1 {[%clk 0:00:09.2]} 76. Nh5 {[%clk 0:00:08.4]} 76... Rg1+
{[%clk 0:00:09.9]} 77. Kh6 {[%clk 0:00:09]} 77... Kf5 {[%clk 0:00:09.9]} 78.
Ng7+ {[%clk 0:00:09.6]} 78... Kf6 {[%clk 0:00:10.2]} 79. Nh5+ {[%clk 0:00:10.2]}
79... Kf7 {[%clk 0:00:10.9]} 80. Nf4 {[%clk 0:00:10.5]} 80... Rg4 {[%clk
0:00:11.1]} 81. Nh5 {[%clk 0:00:11.1]} 81... Rg2 {[%clk 0:00:09.5]} 82. Nf4
{[%clk 0:00:11]} 82... Rg1 {[%clk 0:00:09.7]} 83. Nh5 {[%clk 0:00:10.5]} 83...
Ke6 {[%clk 0:00:10.1]} 84. Ng7+ {[%clk 0:00:09.5]} 84... Ke5 {[%clk 0:00:10.6]}
85. Nh5 {[%clk 0:00:09.9]} 85... Kf5 {[%clk 0:00:08.6]} 86. Ng7+ {[%clk
0:00:10]} 86... Kg4 {[%clk 0:00:09.2]} 87. Kg6 {[%clk 0:00:09.9]} 87... Ra1
{[%clk 0:00:09.9]} 88. Kf6 {[%clk 0:00:10.2]} 88... Ra6+ {[%clk 0:00:10.2]} 89.
Ne6 {[%clk 0:00:10.9]} 89... Kf3 {[%clk 0:00:09.1]} 90. Ke5 {[%clk 0:00:11.5]}
90... Ra5+ {[%clk 0:00:09]} 91. Kd4 {[%clk 0:00:10.9]} 91... Ra4+ {[%clk
0:00:07.3]} 92. Ke5 {[%clk 0:00:11.1]} 92... Ra5+ {[%clk 0:00:06.3]} 93. Kd4
{[%clk 0:00:11.5]} 93... Kg4 {[%clk 0:00:06.9]} 94. Nc5 {[%clk 0:00:11.3]} 94...
Kf5 {[%clk 0:00:07]} 95. Kd5 {[%clk 0:00:11.1]} 95... Ra8 {[%clk 0:00:06.5]} 96.
Kd4 {[%clk 0:00:10.7]} 96... Rd8+ {[%clk 0:00:06.7]} 97. Kc4 {[%clk 0:00:11.1]}
97... Ke5 {[%clk 0:00:07.3]} 98. Nd3+ {[%clk 0:00:11.8]} 98... Kd6 {[%clk
0:00:07.8]} 99. Kd4 {[%clk 0:00:12]} 99... Ra8 {[%clk 0:00:08.3]} 100. Ke4
{[%clk 0:00:12.2]} 100... Ra4+ {[%clk 0:00:08.7]} 101. Kf5 {[%clk 0:00:12.9]}
101... Kd5 {[%clk 0:00:08.7]} 102. Nf4+ {[%clk 0:00:13.5]} 102... Kd4 {[%clk
0:00:09.3]} 103. Ne6+ {[%clk 0:00:14.2]} 103... Ke3 {[%clk 0:00:09.9]} 104. Ke5
{[%clk 0:00:14.2]} 104... Ra5+ {[%clk 0:00:10.4]} 105. Kd6 {[%clk 0:00:14.8]}
105... Ke4 {[%clk 0:00:11]} 106. Nc5+ {[%clk 0:00:15.5]} 106... Kf4 {[%clk
0:00:10.7]} 107. Kd5 {[%clk 0:00:15.7]} 107... Kf5 {[%clk 0:00:10.3]} 108. Kd4
{[%clk 0:00:16]} 108... Ra1 {[%clk 0:00:09.9]} 109. Kd5 {[%clk 0:00:16.5]}
109... Rd1+ {[%clk 0:00:09.4]} 110. Kc4 {[%clk 0:00:15.6]} 110... Ke5 {[%clk
0:00:10]} 111. Nd3+ {[%clk 0:00:16.1]} 111... Kd6 {[%clk 0:00:10.1]} 112. Kd4
{[%clk 0:00:16.4]} 112... Rh1 {[%clk 0:00:10.6]} 113. Ke4 {[%clk 0:00:16.4]}
113... Re1+ {[%clk 0:00:11.1]} 114. Nxe1 {[%clk 0:00:16.4]} 1/2-1/2

[Event "Late-Titled-Tuesday-Blitz-February-13-2024"]
[Site "Chess.com"]
[Date "2024.02.13"]
[Round "4"]
[White "saikrishnaReturns"]
[Black "Cambek64"]
[Result "1-0"]
[WhiteElo "2774"]
[BlackElo "2501"]
[TimeControl "180+1"]
[EndTime "14:33:22 PST"]
[Termination "saikrishnaReturns won by resignation"]

1. Nf3 {[%clk 0:03:00.9]} 1... b5 {[%clk 0:02:57.9]} 2. e4 {[%clk 0:02:59.9]}
2... Bb7 {[%clk 0:02:57.4]} 3. Bxb5 {[%clk 0:02:59]} 3... Bxe4 {[%clk
0:02:57.6]} 4. Nc3 {[%clk 0:02:59.4]} 4... Bg6 {[%clk 0:02:54.5]} 5. h4 {[%clk
0:02:53.5]} 5... h6 {[%clk 0:02:52.8]} 6. Ne5 {[%clk 0:02:51]} 6... c6 {[%clk
0:02:33.3]} 7. Nxg6 {[%clk 0:02:43.1]} 7... cxb5 {[%clk 0:02:21.9]} 8. Nxh8
{[%clk 0:02:41.1]} 8... g6 {[%clk 0:02:21.6]} 9. Qf3 {[%clk 0:02:40.5]} 9... Nf6
{[%clk 0:02:19.9]} 10. Qxa8 {[%clk 0:02:39.3]} 10... b4 {[%clk 0:02:17.3]} 11.
Nd5 {[%clk 0:02:33]} 11... Bg7 {[%clk 0:02:17.3]} 12. Nxf6+ {[%clk 0:02:27.8]}
12... Bxf6 {[%clk 0:02:17.5]} 13. h5 {[%clk 0:02:27.3]} 13... g5 {[%clk
0:02:16.6]} 14. Qe4 {[%clk 0:02:22.2]} 14... Bxh8 {[%clk 0:02:16.4]} 15. Qh7
{[%clk 0:02:22.2]} 1-0

[Event "Late-Titled-Tuesday-Blitz-February-13-2024"]
[Site "Chess.com"]
[Date "2024.02.13"]
[Round "4"]
[White "Jamal-Jamal-Jamal"]
[Black "dorpato"]
[Result "1-0"]
[WhiteElo "2270"]
[BlackElo "2107"]
[TimeControl "180+1"]
[EndTime "14:33:50 PST"]
[Termination "Jamal-Jamal-Jamal won by resignation"]

1. d4 {[%clk 0:03:00.9]} 1... Nf6 {[%clk 0:02:58.7]} 2. Nf3 {[%clk 0:03:00.7]}
2... g6 {[%clk 0:02:57.5]} 3. g3 {[%clk 0:03:00.5]} 3... Bg7 {[%clk 0:02:56.2]}
4. Bg2 {[%clk 0:03:01.4]} 4... d5 {[%clk 0:02:54.5]} 5. O-O {[%clk 0:03:02.3]}
5... O-O {[%clk 0:02:52]} 6. Nbd2 {[%clk 0:03:01.9]} 6... b6 {[%clk 0:02:46.8]}
7. c4 {[%clk 0:03:01.8]} 7... c6 {[%clk 0:02:42.4]} 8. cxd5 {[%clk 0:03:00.9]}
8... cxd5 {[%clk 0:02:40.9]} 9. Nb3 {[%clk 0:03:00.4]} 9... Bb7 {[%clk
0:02:39.1]} 10. a4 {[%clk 0:03:00.2]} 10... Nbd7 {[%clk 0:02:22.1]} 11. a5
{[%clk 0:02:59.8]} 11... Ne4 {[%clk 0:02:01.5]} 12. a6 {[%clk 0:02:57.5]} 12...
Bc6 {[%clk 0:01:59.4]} 13. Bf4 {[%clk 0:02:57]} 13... f6 {[%clk 0:01:56.6]} 14.
Qc2 {[%clk 0:02:50.3]} 14... e5 {[%clk 0:01:54.5]} 15. Qxc6 {[%clk 0:02:46.5]}
15... exf4 {[%clk 0:01:41.5]} 16. Qxd5+ {[%clk 0:02:45.7]} 16... Kh8 {[%clk
0:01:41.3]} 17. Qxe4 {[%clk 0:02:45.6]} 17... f5 {[%clk 0:01:40.2]} 18. Qd3
{[%clk 0:02:42.7]} 18... fxg3 {[%clk 0:01:38.1]} 19. hxg3 {[%clk 0:02:43.6]}
19... Nf6 {[%clk 0:01:37.7]} 20. Ne5 {[%clk 0:02:41.4]} 20... Ng4 {[%clk
0:01:36.7]} 1-0

[Event "Late-Titled-Tuesday-Blitz-February-13-2024"]
[Site "Chess.com"]
[Date "2024.02.13"]
[Round "4"]
[White "a-z30"]
[Black "sharkarton"]
[Result "0-1"]
[WhiteElo "2304"]
[BlackElo "2514"]
[TimeControl "180+1"]
[EndTime "14:33:52 PST"]
[Termination "sharkarton won by resignation"]

1. d3 {[%clk 0:03:00.9]} 1... d5 {[%clk 0:02:47.2]} 2. Nf3 {[%clk 0:03:01.8]}
2... Nf6 {[%clk 0:02:47]} 3. g3 {[%clk 0:03:02.7]} 3... e6 {[%clk 0:02:46.5]} 4.
Bg2 {[%clk 0:03:03.6]} 4... Bd6 {[%clk 0:02:46.2]} 5. O-O {[%clk 0:03:04.5]}
5... O-O {[%clk 0:02:46.2]} 6. c4 {[%clk 0:03:04.8]} 6... c6 {[%clk 0:02:45.8]}
7. Nc3 {[%clk 0:03:04.9]} 7... b6 {[%clk 0:02:45]} 8. b3 {[%clk 0:03:05.1]} 8...
Bb7 {[%clk 0:02:44.6]} 9. Bb2 {[%clk 0:03:05.1]} 9... Nbd7 {[%clk 0:02:41.1]}
10. Qc2 {[%clk 0:03:02.5]} 10... Rc8 {[%clk 0:02:39.8]} 11. Rfd1 {[%clk
0:03:02.1]} 11... Qe7 {[%clk 0:02:35.3]} 12. Rac1 {[%clk 0:03:01]} 12... a5
{[%clk 0:02:31.1]} 13. d4 {[%clk 0:03:00.5]} 13... c5 {[%clk 0:02:24.1]} 14.
dxc5 {[%clk 0:02:59.6]} 14... Bxc5 {[%clk 0:02:20]} 15. Ng5 {[%clk 0:02:38.9]}
15... Bxf2+ {[%clk 0:01:58]} 16. Kxf2 {[%clk 0:02:21.7]} 16... Ng4+ {[%clk
0:01:57.8]} 17. Kg1 {[%clk 0:02:21.9]} 17... Qxg5 {[%clk 0:01:56.9]} 18. cxd5
{[%clk 0:02:15.1]} 18... Qe3+ {[%clk 0:01:56.3]} 0-1

[Event "Late-Titled-Tuesday-Blitz-February-13-2024"]
[Site "Chess.com"]
[Date "2024.02.13"]
[Round "4"]
[White "hmatyi07"]
[Black "VinzentSpitzl"]
[Result "0-1"]
[WhiteElo "2246"]
[BlackElo "2503"]
[TimeControl "180+1"]
[EndTime "14:34:09 PST"]
[Termination "VinzentSpitzl won by resignation"]

1. d4 {[%clk 0:02:17.7]} 1... Nf6 {[%clk 0:02:59.3]} 2. c4 {[%clk 0:02:16]} 2...
e6 {[%clk 0:02:59.6]} 3. g3 {[%clk 0:02:11.5]} 3... d5 {[%clk 0:02:59.5]} 4. Bg2
{[%clk 0:02:11.5]} 4... Bb4+ {[%clk 0:03:00.1]} 5. Nd2 {[%clk 0:02:10.7]} 5...
O-O {[%clk 0:02:58.4]} 6. Nf3 {[%clk 0:02:10.9]} 6... b6 {[%clk 0:02:58.2]} 7.
O-O {[%clk 0:02:10.6]} 7... Bb7 {[%clk 0:02:57.9]} 8. Qa4 {[%clk 0:02:10.1]}
8... Be7 {[%clk 0:02:54.3]} 9. Qc2 {[%clk 0:02:01.1]} 9... Nbd7 {[%clk
0:02:45.9]} 10. b3 {[%clk 0:02:00.5]} 10... c5 {[%clk 0:02:44.8]} 11. Bb2 {[%clk
0:02:00.3]} 11... Rc8 {[%clk 0:02:44]} 12. Rad1 {[%clk 0:01:53.5]} 12... dxc4
{[%clk 0:02:36.6]} 13. bxc4 {[%clk 0:01:50.1]} 13... cxd4 {[%clk 0:02:34.9]} 14.
Nxd4 {[%clk 0:01:46.7]} 14... Bxg2 {[%clk 0:02:33.5]} 15. Kxg2 {[%clk
0:01:43.5]} 15... Qc7 {[%clk 0:02:33]} 16. Nb5 {[%clk 0:01:36.5]} 16... Qc6+
{[%clk 0:02:25.6]} 17. Kg1 {[%clk 0:01:36.4]} 17... Qxb5 {[%clk 0:02:24.2]} 0-1

[Event "Late-Titled-Tuesday-Blitz-February-13-2024"]
[Site "Chess.com"]
[Date "2024.02.13"]
[Round "4"]
[White "inagreV"]
[Black "rcmz"]
[Result "1-0"]
[WhiteElo "2365"]
[BlackElo "2161"]
[TimeControl "180+1"]
[EndTime "14:34:24 PST"]
[Termination "inagreV won by resignation"]

1. e4 {[%clk 0:03:00.9]} 1... a6 {[%clk 0:02:58.6]} 2. d4 {[%clk 0:02:58.5]}
2... b5 {[%clk 0:02:58.3]} 3. a4 {[%clk 0:02:58.3]} 3... b4 {[%clk 0:02:57.8]}
4. Nf3 {[%clk 0:02:57.9]} 4... Bb7 {[%clk 0:02:57.8]} 5. Bd3 {[%clk 0:02:58.1]}
5... e6 {[%clk 0:02:58]} 6. O-O {[%clk 0:02:58.1]} 6... Nf6 {[%clk 0:02:55.8]}
7. Re1 {[%clk 0:02:56.9]} 7... c5 {[%clk 0:02:43.4]} 8. dxc5 {[%clk 0:02:56.8]}
8... Bxc5 {[%clk 0:02:42.2]} 9. Nbd2 {[%clk 0:02:57.1]} 9... Qb6 {[%clk
0:02:38.4]} 10. Qe2 {[%clk 0:02:56.1]} 10... Nc6 {[%clk 0:02:24.4]} 11. Nc4
{[%clk 0:02:54.2]} 11... Qc7 {[%clk 0:02:19.9]} 12. Bg5 {[%clk 0:02:49.9]} 12...
h6 {[%clk 0:02:17.7]} 13. Bh4 {[%clk 0:02:48.6]} 13... Nd4 {[%clk 0:02:10.8]}
14. Nxd4 {[%clk 0:02:46.3]} 14... Bxd4 {[%clk 0:02:10.2]} 15. e5 {[%clk
0:02:35.5]} 15... Ng8 {[%clk 0:01:47.3]} 16. Nd6+ {[%clk 0:02:34.7]} 16... Kf8
{[%clk 0:01:44.5]} 17. Qh5 {[%clk 0:02:26.8]} 17... g6 {[%clk 0:01:21.7]} 18.
Bxg6 {[%clk 0:02:26.4]} 18... Qc6 {[%clk 0:01:21]} 19. Be4 {[%clk 0:02:25.5]}
1-0

[Event "Late-Titled-Tuesday-Blitz-February-13-2024"]
[Site "Chess.com"]
[Date "2024.02.13"]
[Round "4"]
[White "picturesquecheck"]
[Black "Malev212"]
[Result "0-1"]
[WhiteElo "2410"]
[BlackElo "2678"]
[TimeControl "180+1"]
[EndTime "14:35:11 PST"]
[Termination "Malev212 won by resignation"]

1. e4 {[%clk 0:02:57.5]} 1... c5 {[%clk 0:02:56.9]} 2. Nf3 {[%clk 0:02:56.8]}
2... d6 {[%clk 0:02:56.9]} 3. d4 {[%clk 0:02:57.1]} 3... cxd4 {[%clk 0:02:57.1]}
4. Nxd4 {[%clk 0:02:57.6]} 4... Nf6 {[%clk 0:02:57.1]} 5. Nc3 {[%clk 0:02:58.3]}
5... g6 {[%clk 0:02:55.1]} 6. Be3 {[%clk 0:02:58]} 6... a6 {[%clk 0:02:53.3]} 7.
Bc4 {[%clk 0:02:56.3]} 7... Bg7 {[%clk 0:02:52.2]} 8. f3 {[%clk 0:02:56.1]} 8...
Nbd7 {[%clk 0:02:49.8]} 9. Qd2 {[%clk 0:02:52.5]} 9... b5 {[%clk 0:02:49]} 10.
Bb3 {[%clk 0:02:51.5]} 10... Nc5 {[%clk 0:02:47.2]} 11. h4 {[%clk 0:02:41.7]}
11... h5 {[%clk 0:02:45.9]} 12. O-O-O {[%clk 0:02:29.7]} 12... Bd7 {[%clk
0:02:45.1]} 13. Kb1 {[%clk 0:02:17.3]} 13... Rc8 {[%clk 0:02:30.5]} 14. Nd5
{[%clk 0:02:14.6]} 14... Nxd5 {[%clk 0:02:22]} 15. exd5 {[%clk 0:02:15.5]} 15...
a5 {[%clk 0:02:17.7]} 16. c3 {[%clk 0:02:05.3]} 16... b4 {[%clk 0:02:06.3]} 17.
cxb4 {[%clk 0:01:53.6]} 17... axb4 {[%clk 0:02:05.3]} 18. Qxb4 {[%clk
0:01:47.7]} 18... O-O {[%clk 0:02:01.9]} 19. Qd2 {[%clk 0:01:41.4]} 19... Nxb3
{[%clk 0:01:55.8]} 20. Nxb3 {[%clk 0:01:37.8]} 20... Bf5+ {[%clk 0:01:54.5]} 21.
Ka1 {[%clk 0:01:29.5]} 21... Rc2 {[%clk 0:01:53.9]} 0-1

[Event "Late-Titled-Tuesday-Blitz-February-13-2024"]
[Site "Chess.com"]
[Date "2024.02.13"]
[Round "4"]
[White "MajorCoast"]
[Black "SamCopeland"]
[Result "1-0"]
[WhiteElo "2209"]
[BlackElo "2377"]
[TimeControl "180+1"]
[EndTime "14:35:29 PST"]
[Termination "MajorCoast won by resignation"]

1. Nc3 {[%clk 0:03:00.5]} 1... f5 {[%clk 0:02:56.4]} 2. e4 {[%clk 0:02:59.9]}
2... e5 {[%clk 0:02:47]} 3. Bc4 {[%clk 0:02:56.4]} 3... Nf6 {[%clk 0:02:46.5]}
4. d3 {[%clk 0:02:55.1]} 4... Nc6 {[%clk 0:02:44.8]} 5. Bg5 {[%clk 0:02:52.2]}
5... Bc5 {[%clk 0:02:44]} 6. Nd5 {[%clk 0:02:49.7]} 6... Be7 {[%clk 0:02:25.8]}
7. Bxf6 {[%clk 0:02:35.8]} 7... Bxf6 {[%clk 0:02:26.7]} 8. Qh5+ {[%clk
0:02:31.6]} 8... g6 {[%clk 0:02:25.3]} 9. Qh6 {[%clk 0:02:30.4]} 9... d6 {[%clk
0:02:19.6]} 10. h4 {[%clk 0:02:23.1]} 10... Na5 {[%clk 0:02:11.5]} 11. h5 {[%clk
0:02:20]} 11... Nxc4 {[%clk 0:02:11.1]} 12. hxg6 {[%clk 0:02:04.7]} 12... Be6
{[%clk 0:01:49.6]} 13. g7 {[%clk 0:01:46.6]} 13... Bxd5 {[%clk 0:01:48.7]} 14.
gxh8=Q+ {[%clk 0:01:38.8]} 14... Bxh8 {[%clk 0:01:47.8]} 15. exd5 {[%clk
0:01:33.7]} 15... Nb6 {[%clk 0:01:30.5]} 16. Qxh7 {[%clk 0:01:28.6]} 16... Bf6
{[%clk 0:01:25.1]} 17. Qg8+ {[%clk 0:01:20.4]} 17... Ke7 {[%clk 0:01:19.9]} 18.
Rh7+ {[%clk 0:01:12.7]} 1-0

[Event "Late-Titled-Tuesday-Blitz-February-13-2024"]
[Site "Chess.com"]
[Date "2024.02.13"]
[Round "4"]
[White "waltereador"]
[Black "Tolya2"]
[Result "0-1"]
[WhiteElo "2269"]
[BlackElo "2506"]
[TimeControl "180+1"]
[EndTime "14:35:34 PST"]
[Termination "Tolya2 won by resignation"]

1. e4 {[%clk 0:03:00]} 1... c5 {[%clk 0:02:58.8]} 2. b4 {[%clk 0:02:58.4]} 2...
b6 {[%clk 0:02:57.8]} 3. bxc5 {[%clk 0:02:58.4]} 3... bxc5 {[%clk 0:02:56.8]} 4.
Nc3 {[%clk 0:02:59.3]} 4... d6 {[%clk 0:02:56.6]} 5. Rb1 {[%clk 0:02:59.7]} 5...
g6 {[%clk 0:02:54.2]} 6. Nf3 {[%clk 0:02:58.7]} 6... Bg7 {[%clk 0:02:54]} 7.
Bb5+ {[%clk 0:02:56.2]} 7... Bd7 {[%clk 0:02:50.7]} 8. Bxd7+ {[%clk 0:02:54.8]}
8... Nxd7 {[%clk 0:02:48.5]} 9. Nd5 {[%clk 0:02:55.1]} 9... Ngf6 {[%clk
0:02:46.7]} 10. Nxf6+ {[%clk 0:02:54.4]} 10... Nxf6 {[%clk 0:02:43.6]} 11. d3
{[%clk 0:02:55.3]} 11... O-O {[%clk 0:02:42.1]} 12. O-O {[%clk 0:02:55.2]} 12...
Qa5 {[%clk 0:02:40.3]} 13. a3 {[%clk 0:02:54.5]} 13... Rab8 {[%clk 0:02:39.1]}
14. Rb3 {[%clk 0:02:46.2]} 14... Rxb3 {[%clk 0:02:35.2]} 15. cxb3 {[%clk
0:02:46.2]} 15... Rb8 {[%clk 0:02:34.8]} 16. Bb2 {[%clk 0:02:44.2]} 16... Nd7
{[%clk 0:02:33]} 17. Bxg7 {[%clk 0:02:43.6]} 17... Kxg7 {[%clk 0:02:33.2]} 18.
Qa1+ {[%clk 0:02:42.2]} 18... f6 {[%clk 0:02:30.1]} 19. Rb1 {[%clk 0:02:42.3]}
19... Ne5 {[%clk 0:02:26.8]} 20. Nxe5 {[%clk 0:02:40.2]} 20... fxe5 {[%clk
0:02:26.7]} 21. Qa2 {[%clk 0:02:34.6]} 21... Qc3 {[%clk 0:02:23.6]} 22. b4
{[%clk 0:02:20.4]} 22... Qxd3 {[%clk 0:02:18.2]} 23. Re1 {[%clk 0:02:18.3]}
23... cxb4 {[%clk 0:02:13.6]} 24. axb4 {[%clk 0:02:18.3]} 24... Rxb4 {[%clk
0:02:09.2]} 25. Qxa7 {[%clk 0:02:18]} 25... Kf6 {[%clk 0:01:59.4]} 26. Qa8
{[%clk 0:01:56.6]} 26... Rb1 {[%clk 0:01:44.7]} 27. Qh8+ {[%clk 0:01:55.2]}
27... Ke6 {[%clk 0:01:38.6]} 28. Qc8+ {[%clk 0:01:49]} 28... Kf7 {[%clk
0:01:36.2]} 29. Qc1 {[%clk 0:01:32.3]} 29... Rxc1 {[%clk 0:01:34.9]} 30. Rxc1
{[%clk 0:01:33.2]} 30... Qxe4 {[%clk 0:01:34.2]} 31. f3 {[%clk 0:01:33.3]} 31...
Qe3+ {[%clk 0:01:34.1]} 0-1

[Event "Late-Titled-Tuesday-Blitz-February-13-2024"]
[Site "Chess.com"]
[Date "2024.02.13"]
[Round "4"]
[White "babero_gordo"]
[Black "wild3000"]
[Result "1-0"]
[WhiteElo "2146"]
[BlackElo "2307"]
[TimeControl "180+1"]
[EndTime "14:35:35 PST"]
[Termination "babero_gordo won by resignation"]

1. e4 {[%clk 0:02:59.6]} 1... a6 {[%clk 0:02:35]} 2. Nf3 {[%clk 0:02:53.3]} 2...
e6 {[%clk 0:02:32.6]} 3. d3 {[%clk 0:02:50.3]} 3... c5 {[%clk 0:02:31.6]} 4. Nc3
{[%clk 0:02:45.6]} 4... b5 {[%clk 0:02:31.6]} 5. g3 {[%clk 0:02:45]} 5... Bb7
{[%clk 0:02:31.2]} 6. Bg2 {[%clk 0:02:44.6]} 6... d5 {[%clk 0:02:29.4]} 7. exd5
{[%clk 0:02:40.8]} 7... exd5 {[%clk 0:02:30.3]} 8. O-O {[%clk 0:02:40.7]} 8...
d4 {[%clk 0:02:30.2]} 9. Ne4 {[%clk 0:02:35.2]} 9... Be7 {[%clk 0:02:29.9]} 10.
Re1 {[%clk 0:02:28.5]} 10... Nd7 {[%clk 0:02:29.1]} 11. a4 {[%clk 0:02:22.3]}
11... Ngf6 {[%clk 0:02:27.6]} 12. Nd6+ {[%clk 0:02:21.3]} 12... Kf8 {[%clk
0:02:24.8]} 13. Nxb7 {[%clk 0:02:20.7]} 13... Qc7 {[%clk 0:02:23]} 14. Nd2
{[%clk 0:02:09.1]} 14... Rb8 {[%clk 0:02:21.3]} 15. axb5 {[%clk 0:02:00.6]}
15... axb5 {[%clk 0:02:22.2]} 16. Na5 {[%clk 0:01:54.4]} 16... h5 {[%clk
0:02:18.9]} 17. Rxe7 {[%clk 0:01:45]} 17... Kxe7 {[%clk 0:02:17]} 18. Nc6+
{[%clk 0:01:43.4]} 18... Kf8 {[%clk 0:02:16.6]} 19. Nxb8 {[%clk 0:01:43.2]}
19... Nxb8 {[%clk 0:02:17.5]} 20. Ne4 {[%clk 0:01:42.5]} 20... Ng4 {[%clk
0:02:12.6]} 21. Bf4 {[%clk 0:01:40.4]} 21... Ne5 {[%clk 0:02:05.3]} 22. Ra2
{[%clk 0:01:36.8]} 22... f6 {[%clk 0:02:02.2]} 23. Ra8 {[%clk 0:01:35.7]} 23...
g5 {[%clk 0:02:01.4]} 24. Bxe5 {[%clk 0:01:26.7]} 24... Qxe5 {[%clk 0:02:01.2]}
25. Nxc5 {[%clk 0:01:20.9]} 25... Qxc5 {[%clk 0:01:56.9]} 26. Rxb8+ {[%clk
0:01:20.3]} 26... Kg7 {[%clk 0:01:57.8]} 27. Rxh8 {[%clk 0:01:20]} 27... Kxh8
{[%clk 0:01:58.7]} 28. Qxh5+ {[%clk 0:01:20]} 28... Kg7 {[%clk 0:01:58.5]} 29.
Be4 {[%clk 0:01:18]} 29... Qxc2 {[%clk 0:01:52.2]} 30. Qg6+ {[%clk 0:01:16.3]}
30... Kf8 {[%clk 0:01:50.8]} 31. Qxf6+ {[%clk 0:01:16.1]} 31... Ke8 {[%clk
0:01:51]} 32. Bc6+ {[%clk 0:01:14.5]} 1-0